bitfinex/quotes_BTCUSD_20250730
["timestamp","ask_amount","ask_price","bid_price","bid_amount"]
[1753885222932,0.0296763,118060.0,118050.0,0.3424773]
[1753885223142,0.0296763,118060.0,118050.0,0.12644]
[1753885223392,0.03814599,118060.0,118050.0,0.25796]
[1753885223557,0.0296763,118060.0,118050.0,0.25796]
[1753885224411,0.02176713,118060.0,118050.0,0.25796]
[1753885224632,0.02971449,118060.0,118050.0,0.25796]
[1753885224825,0.03818418,118060.0,118050.0,0.6201033]
[1753885225234,0.04665401,118060.0,118050.0,0.6200233]
[1753885225427,0.03872031,118060.0,118050.0,0.6200233]
[1753885225637,0.04665494,118060.0,118050.0,0.6200233]
[1753885226488,0.04665494,118060.0,118050.0,0.25788]
[1753885226691,0.06359482,118060.0,118050.0,0.6200233]
[1753885226895,0.05512477,118060.0,118050.0,0.25788]
[1753885227112,0.04665494,118060.0,118050.0,0.25788]
[1753885227522,0.05517053,118060.0,118050.0,0.25788]
[1753885228141,0.02976125,118060.0,118050.0,0.6200233]
[1753885229152,0.00793463,118060.0,118050.0,0.12644]
[1753885229377,0.03082903,118060.0,118050.0,0.2578]
[1753885229664,0.03823815,118060.0,118050.0,0.6199433]
[1753885230147,0.04670813,118060.0,118050.0,0.6199433]
[1753885230363,0.03030352,118060.0,118050.0,0.6199433]
[1753885230564,0.03824348,118060.0,118050.0,0.6199433]
[1753885230770,0.03824341,118060.0,118050.0,0.6199433]
[1753885231191,0.04671324,118060.0,118050.0,0.6199433]
[1753885231411,0.05518322,118060.0,118050.0,0.2578]
[1753885231825,0.02977372,118060.0,118050.0,0.2578]
[1753885232036,0.02977372,118060.0,118050.0,0.6199433]
[1753885232254,0.03824341,118060.0,118050.0,0.6199433]
[1753885232470,0.03824348,118060.0,118050.0,0.6199433]
[1753885232698,0.03824334,118060.0,118050.0,0.6199433]
[1753885232908,0.02977372,118060.0,118050.0,0.6199433]
[1753885233324,0.00794478,118060.0,118050.0,0.5551433]
[1753885233954,0.00794478,118060.0,118050.0,0.6162433]
[1753885236320,0.00794324,118060.0,118050.0,0.80904011]
[1753885236606,0.00794324,118060.0,118050.0,0.6396206]
[1753885236815,0.01641181,118070.0,118060.0,0.0623]
[1753885237024,0.03825481,118070.0,118060.0,0.4265433]
[1753885237233,0.03825481,118070.0,118060.0,0.4889033]
[1753885237655,0.03825481,118070.0,118060.0,0.6202633]
[1753885238287,0.00794291,118070.0,118060.0,0.6202633]
[1753885238506,0.01641181,118070.0,118060.0,0.6202633]
[1753885238725,0.00794291,118070.0,118060.0,0.6202633]
[1753885238945,0.00794291,118070.0,118060.0,0.5895633]
[1753885239163,0.43778448,118080.0,118060.0,0.5579633]
[1753885239302,0.48503115,118080.0,118060.0,0.5550033]
[1753885239524,0.46809421,118080.0,118070.0,0.09246]
[1753885239926,0.46809421,118080.0,118070.0,0.12516]
[1753885240138,0.46809421,118080.0,118070.0,0.12416]
[1753885240348,0.46970421,118080.0,118070.0,0.12416]
[1753885240548,0.47070421,118080.0,118070.0,0.12416]
[1753885240767,0.47270421,118080.0,118070.0,0.12416]
[1753885241004,0.64954966,118080.0,118070.0,0.12416]
[1753885241237,0.10468866,118080.0,118070.0,0.4884033]
[1753885241449,0.08284704,118080.0,118070.0,0.4884033]
[1753885241685,0.0888023,118080.0,118070.0,0.4884033]
[1753885242319,0.08284704,118080.0,118070.0,0.4884033]
[1753885242535,0.08384704,118080.0,118070.0,0.4884033]
[1753885242979,0.08084704,118080.0,118070.0,0.4884033]
[1753885243197,0.08084704,118080.0,118070.0,0.4894033]
[1753885243643,0.08084704,118080.0,118070.0,0.4904033]
[1753885244123,0.05501536,118080.0,118070.0,0.65979433]
[1753885244618,0.05501536,118080.0,118070.0,0.74427163]
[1753885244830,0.05501536,118080.0,118070.0,0.75274118]
[1753885245043,0.05501536,118080.0,118070.0,0.76121066]
[1753885246384,0.05501536,118080.0,118070.0,0.74427163]
[1753885246613,0.05501536,118080.0,118070.0,0.75274111]
[1753885246849,0.05501536,118080.0,118070.0,0.74427163]
[1753885247055,0.05501536,118080.0,118070.0,0.75274118]
[1753885247262,0.05501536,118080.0,118070.0,0.74427163]
[1753885247462,0.05501536,118080.0,118070.0,0.75274103]
[1753885247713,0.05501536,118080.0,118070.0,0.75274111]
[1753885248193,0.05501536,118080.0,118070.0,0.75274118]
[1753885248437,0.05501536,118080.0,118070.0,0.76968006]
[1753885248648,0.05501536,118080.0,118070.0,0.76121066]
[1753885249530,0.05501536,118080.0,118070.0,0.75274118]
[1753885249756,0.05501536,118080.0,118070.0,0.76121066]
[1753885249974,0.04707295,118080.0,118070.0,0.75274118]
[1753885250200,0.04707295,118080.0,118070.0,0.74427163]
[1753885251765,0.04707295,118080.0,118070.0,0.75274118]
[1753885252241,0.04707295,118080.0,118070.0,0.74427163]
[1753885253261,0.04707295,118080.0,118070.0,0.75274118]
[1753885253480,0.04707295,118080.0,118070.0,0.76121066]
[1753885253746,0.04707295,118080.0,118070.0,0.75274118]
[1753885253978,0.04707295,118080.0,118070.0,0.53006736]
[1753885254200,0.04707295,118080.0,118070.0,0.90068006]
[1753885254661,0.04707295,118080.0,118070.0,0.91761836]
[1753885255790,0.04707295,118080.0,118070.0,1.27976166]
[1753885256676,0.04707295,118080.0,118070.0,1.27865916]
[1753885257145,0.04707295,118080.0,118070.0,1.27665916]
[1753885257372,0.04707295,118080.0,118070.0,1.28165916]
[1753885258117,0.04707295,118080.0,118070.0,0.91951586]
[1753885258806,0.04707295,118080.0,118070.0,1.28165916]
[1753885259037,0.01587295,118080.0,118070.0,1.66410818]
[1753885259553,0.0481292,118090.0,118080.0,1.36311794]
[1753885259809,0.04827473,118090.0,118080.0,1.67840324]
[1753885260063,0.0152,118100.0,118090.0,0.59636583]
[1753885260317,1e-08,118100.0,118090.0,1.64114875]
[1753885260575,1e-08,118100.0,118090.0,1.74114875]
[1753885261348,0.0002,118130.0,118120.0,0.97970037]
[1753885261600,0.00826304,118130.0,118120.0,1.19741767]
[1753885262100,0.00034547,118130.0,118120.0,1.25774767]
[1753885262338,0.00034547,118130.0,118120.0,1.25766767]
[1753885262579,0.00826304,118130.0,118120.0,0.88079575]
[1753885262819,0.01021304,118130.0,118120.0,0.2046873]
[1753885263058,0.01021304,118130.0,118120.0,0.13104]
[1753885263059,0.3913959,118130.0,118120.0,0.13104]
[1753885263298,0.42393733,118130.0,118120.0,0.13104]
[1753885263567,0.01232304,118130.0,118120.0,0.13104]
[1753885264039,0.01021304,118130.0,118110.0,0.61927482]
[1753885264262,0.00826304,118130.0,118120.0,0.87452642]
[1753885264485,0.00826304,118130.0,118120.0,0.7030906]
[1753885267906,0.01021304,118130.0,118120.0,0.7030906]
[1753885268154,0.01867764,118130.0,118120.0,0.2154773]
[1753885268387,0.02714246,118130.0,118120.0,0.131]
[1753885268615,0.01021304,118130.0,118120.0,0.131]
[1753885268846,0.02714238,118130.0,118120.0,0.131]
[1753885269085,0.01021304,118130.0,118120.0,0.131]
[1753885269326,0.4301605,118130.0,118120.0,0.13096]
[1753885269561,0.04262304,118130.0,118120.0,0.13096]
[1753885269806,0.01232304,118130.0,118120.0,0.13096]
[1753885270045,0.01232304,118130.0,118110.0,0.2266428]
[1753885270270,0.01232304,118130.0,118120.0,0.13104]
[1753885270516,0.01021304,118130.0,118120.0,0.18835]
[1753885270722,0.01021304,118130.0,118120.0,0.13104]
[1753885270989,0.01232304,118130.0,118120.0,0.13104]
[1753885271639,0.02078771,118130.0,118120.0,0.129944]
[1753885271862,0.01867771,118130.0,118120.0,0.129944]
[1753885272092,0.01021304,118130.0,118120.0,0.129944]
[1753885272749,0.01021304,118130.0,118120.0,0.187254]
[1753885272965,0.01021304,118130.0,118120.0,0.188254]
[1753885273882,0.01867764,118130.0,118120.0,0.130944]
[1753885274358,0.01613652,118130.0,118120.0,0.130944]
[1753885274586,0.00826304,118130.0,118120.0,0.87456993]
[1753885274806,0.00826304,118130.0,118120.0,0.3431073]
[1753885275056,0.00826304,118130.0,118120.0,0.7052506]
[1753885275269,0.00826304,118130.0,118120.0,0.87456993]
[1753885275480,0.00826304,118130.0,118120.0,0.7052506]
[1753885275701,0.00826304,118130.0,118120.0,0.3431073]
[1753885275917,0.00826304,118130.0,118120.0,0.7052506]
[1753885276132,0.00826304,118130.0,118120.0,0.3431073]
[1753885276351,0.00826304,118130.0,118120.0,0.87456993]
[1753885276568,0.00826304,118130.0,118120.0,0.7052506]
[1753885277006,0.01021304,118130.0,118120.0,0.2738673]
[1753885277224,0.04041304,118130.0,118120.0,0.13108]
[1753885277450,0.01613899,118130.0,118120.0,0.18839]
[1753885277674,0.01612507,118130.0,118120.0,0.18839]
[1753885278418,0.02458967,118130.0,118120.0,0.18839]
[1753885278672,0.03305434,118130.0,118120.0,0.18839]
[1753885279149,0.01612507,118130.0,118120.0,0.18839]
[1753885280464,0.38673304,118130.0,118120.0,0.05731]
[1753885280685,0.08017131,118130.0,118120.0,0.18835]
[1753885280918,0.26640659,118130.0,118120.0,0.13104]
[1753885281140,0.25794192,118130.0,118120.0,0.13104]
[1753885281602,0.08863692,118130.0,118120.0,0.13104]
[1753885281829,0.08017124,118130.0,118120.0,0.13104]
[1753885282091,0.02999182,118130.0,118120.0,0.4983633]
[1753885282340,0.02999182,118130.0,118120.0,0.5625633]
[1753885283036,0.01417507,118130.0,118120.0,0.78919263]
[1753885283263,0.0082481,118130.0,118120.0,1.24427912]
[1753885283529,0.01418521,118130.0,118120.0,1.24427912]
[1753885283752,0.00826135,118130.0,118120.0,1.26121062]
[1753885283991,0.00826135,118130.0,118120.0,1.26967622]
[1753885284223,0.00826135,118130.0,118120.0,1.27814175]
[1753885284445,0.00826135,118130.0,118120.0,1.26121062]
[1753885284663,0.00826135,118130.0,118120.0,1.26967608]
[1753885284888,0.00826135,118130.0,118120.0,1.26967615]
[1753885285121,0.00826135,118130.0,118120.0,1.27814161]
[1753885285557,0.00826135,118130.0,118120.0,0.88213582]
[1753885285803,0.00826135,118130.0,118120.0,0.88213589]
[1753885286014,0.00826135,118130.0,118120.0,0.87366993]
[1753885286729,0.01420508,118130.0,118120.0,0.87366993]
[1753885287177,0.01420508,118130.0,118120.0,1.10477323]
[1753885287409,0.01420508,118130.0,118120.0,0.51144663]
[1753885287635,0.01420508,118130.0,118120.0,0.87358993]
[1753885287864,0.00826135,118130.0,118120.0,0.87358993]
[1753885288104,0.00826135,118130.0,118120.0,0.50954663]
[1753885288327,0.01420795,118130.0,118120.0,0.87168993]
[1753885288773,0.01420795,118130.0,118120.0,0.88015589]
[1753885288991,0.03007618,118130.0,118120.0,0.88015589]
[1753885289478,0.01422719,118130.0,118120.0,0.88015589]
[1753885289965,0.03009743,118130.0,118120.0,0.87168993]
[1753885290404,0.01422719,118130.0,118120.0,0.87168993]
[1753885290619,0.03009709,118130.0,118120.0,0.87168993]
[1753885290833,0.01422719,118130.0,118120.0,0.87168993]
[1753885291698,0.01422719,118130.0,118120.0,0.51801252]
[1753885291905,0.01422719,118130.0,118120.0,0.88015582]
[1753885292131,0.01422719,118130.0,118120.0,0.88015589]
[1753885292337,0.01423155,118130.0,118120.0,0.88015589]
[1753885292552,0.00923155,118130.0,118120.0,0.87168993]
[1753885293007,0.00923155,118130.0,118120.0,0.88862178]
[1753885293225,0.00328059,118130.0,118120.0,1.27616182]
[1753885293915,0.00328059,118130.0,118120.0,1.25923083]
[1753885294179,0.00328059,118130.0,118120.0,0.89708753]
[1753885294312,0.00328059,118130.0,118120.0,0.90555321]
[1753885294552,0.00328059,118130.0,118120.0,0.91401867]
[1753885294963,0.00328059,118130.0,118120.0,0.91401874]
[1753885295154,0.00328059,118130.0,118120.0,0.91401824]
[1753885295352,0.00328059,118130.0,118120.0,0.89708725]
[1753885295557,0.00328059,118130.0,118120.0,0.90555285]
[1753885295757,0.00328059,118130.0,118120.0,0.91401838]
[1753885296391,0.00328059,118130.0,118120.0,0.89708725]
[1753885296598,0.00328059,118130.0,118120.0,0.90555285]
[1753885296807,0.00350069,118150.0,118130.0,0.23169998]
[1753885297014,0.02531501,118150.0,118140.0,0.13072]
[1753885297238,0.02729501,118150.0,118140.0,0.18585]
[1753885298154,0.02929501,118150.0,118140.0,0.18585]
[1753885298804,0.02729501,118150.0,118140.0,0.18585]
[1753885300080,0.02929501,118150.0,118140.0,0.18585]
[1753885302112,0.02929501,118150.0,118140.0,0.5529533]
[1753885302353,0.02731501,118150.0,118140.0,0.6163533]
[1753885302786,0.02731459,118150.0,118140.0,0.6163533]
[1753885303661,0.02531459,118150.0,118140.0,0.6163533]
[1753885304091,0.01044963,118150.0,118140.0,0.6163533]
[1753885304504,0.01838216,118150.0,118140.0,0.6163533]
[1753885305754,0.03424712,118150.0,118140.0,0.25421]
[1753885305983,0.03424712,118150.0,118140.0,0.6163533]
[1753885306232,0.01838216,118150.0,118140.0,0.6163533]
[1753885306489,0.01838216,118150.0,118140.0,0.87012127]
[1753885306722,0.01243322,118150.0,118140.0,0.7008306]
[1753885307168,0.01243322,118150.0,118140.0,0.87012127]
[1753885307861,0.01243322,118150.0,118140.0,0.895514]
[1753885308101,0.01243322,118150.0,118140.0,1.235514]
[1753885309026,0.00450069,118150.0,118140.0,1.235514]
[1753885309509,1e-08,118150.0,118140.0,1.8050973]
[1753885309780,0.00441389,118160.0,118150.0,0.59896692]
[1753885309995,0.00441389,118160.0,118150.0,1.40971082]
[1753885310223,0.00441389,118160.0,118150.0,1.46782082]
[1753885310456,0.00441389,118160.0,118150.0,1.49282082]
[1753885311129,0.00441389,118160.0,118150.0,1.517854]
[1753885311363,0.00441389,118160.0,118150.0,1.53530302]
[1753885312051,0.00441389,118160.0,118150.0,1.51030302]
[1753885312280,0.00441389,118160.0,118150.0,1.66622302]
[1753885312732,0.00441389,118160.0,118150.0,1.66822302]
[1753885313684,0.00441389,118160.0,118150.0,1.67122302]
[1753885315466,0.00441389,118160.0,118150.0,1.653774]
[1753885315689,0.00441389,118160.0,118150.0,1.2916307]
[1753885316135,0.00441389,118160.0,118150.0,1.653774]
[1753885316588,0.00441389,118160.0,118150.0,1.11067752]
[1753885316819,0.00441389,118160.0,118150.0,0.51406364]
[1753885317089,0.00441389,118160.0,118150.0,0.90159752]
[1753885317328,0.00441389,118160.0,118150.0,0.77067752]
[1753885317546,0.00441389,118160.0,118150.0,0.90159752]
[1753885318022,0.00441389,118160.0,118150.0,0.89313435]
[1753885318251,0.00441389,118160.0,118150.0,0.91006111]
[1753885318729,0.00441389,118160.0,118150.0,1.27220441]
[1753885318962,0.00441389,118160.0,118150.0,1.63720441]
[1753885320349,0.00441389,118160.0,118150.0,1.66250642]
[1753885321029,0.00441389,118160.0,118150.0,1.30036312]
[1753885321505,0.00441389,118160.0,118150.0,1.16944312]
[1753885321742,0.00441389,118160.0,118150.0,0.37818364]
[1753885321963,0.00639389,118160.0,118150.0,0.38967364]
[1753885322205,0.00639389,118160.0,118150.0,0.38975364]
[1753885322967,0.00639389,118160.0,118150.0,0.872396]
[1753885323226,0.00639389,118160.0,118150.0,0.86393233]
[1753885323501,0.00639389,118160.0,118150.0,0.873396]
[1753885323693,0.00441389,118160.0,118150.0,0.88732313]
[1753885323953,0.00441389,118160.0,118150.0,0.89578644]
[1753885324167,0.00441389,118160.0,118150.0,0.89678658]
[1753885324402,0.00441389,118160.0,118150.0,0.88832313]
[1753885324653,0.00638389,118160.0,118150.0,0.50478364]
[1753885324902,0.00638389,118160.0,118150.0,0.37378364]
[1753885325161,0.00638389,118160.0,118150.0,0.82624233]
[1753885325419,0.00638389,118160.0,118150.0,0.79454233]
[1753885325656,0.00638389,118160.0,118150.0,0.44154364]
[1753885325853,0.00638389,118160.0,118150.0,0.45000745]
[1753885326053,0.00638389,118160.0,118150.0,0.44154364]
[1753885326773,0.00638389,118160.0,118150.0,0.87115607]
[1753885327003,0.00638389,118160.0,118150.0,0.87961974]
[1753885327231,0.00638389,118160.0,118150.0,0.88808334]
[1753885327449,0.00638389,118160.0,118150.0,0.87961974]
[1753885327673,0.00441389,118160.0,118150.0,0.53508465]
[1753885327922,0.00441389,118160.0,118150.0,0.87961974]
[1753885328149,0.00441389,118160.0,118150.0,0.88808319]
[1753885328395,0.00441389,118160.0,118150.0,0.88808327]
[1753885328802,0.00441389,118160.0,118150.0,0.9050101]
[1753885328808,0.00441389,118160.0,118150.0,0.88808298]
[1753885329011,0.00441389,118160.0,118150.0,0.89654629]
[1753885329226,0.00441389,118160.0,118150.0,0.87961953]
[1753885329640,0.00441389,118160.0,118150.0,0.871156]
[1753885330079,0.00441389,118160.0,118150.0,0.86269233]
[1753885330299,0.00441389,118160.0,118150.0,0.87115607]
[1753885330533,0.00441389,118160.0,118150.0,0.87961974]
[1753885330978,0.00441389,118160.0,118150.0,0.87115614]
[1753885331256,0.00441389,118160.0,118150.0,0.88808334]
[1753885331462,0.00441389,118160.0,118150.0,0.87961981]
[1753885331695,0.00441389,118160.0,118150.0,0.88808334]
[1753885331925,0.00441389,118160.0,118150.0,0.89654665]
[1753885332360,0.00441389,118160.0,118150.0,0.75712334]
[1753885332603,0.00655389,118160.0,118150.0,0.47454364]
[1753885332817,0.00655389,118160.0,118150.0,0.44154364]
[1753885333050,0.00655389,118160.0,118150.0,0.31058364]
[1753885333288,0.08984831,118160.0,118150.0,0.0864773]
[1753885333515,0.08984831,118160.0,118150.0,0.002]
[1753885333516,0.09819189,118160.0,118150.0,0.002]
[1753885333765,0.62836917,118160.0,118150.0,0.002]
[1753885333976,0.27537048,118160.0,118150.0,0.133]
[1753885334214,0.65016098,118160.0,118150.0,0.002]
[1753885334449,0.994697,118160.0,118150.0,0.001]
[1753885334896,0.994697,118160.0,118150.0,0.002]
[1753885335867,0.994697,118160.0,118150.0,0.001]
[1753885336117,0.64169831,118160.0,118150.0,0.001]
[1753885336416,0.08082662,118150.0,118120.0,0.37128975]
[1753885336653,0.09931941,118150.0,118130.0,0.05483]
[1753885336898,0.00197,118140.0,118130.0,0.05483]
[1753885337386,0.01043403,118140.0,118130.0,0.05483]
[1753885337634,0.0188982,118140.0,118130.0,0.05483]
[1753885337844,0.01043403,118140.0,118130.0,0.05483]
[1753885338067,0.00197,118140.0,118130.0,0.05483]
[1753885338751,0.02681653,118140.0,118130.0,0.05483]
[1753885338996,0.0098884,118140.0,118130.0,0.05483]
[1753885339458,0.00197,118140.0,118130.0,0.05483]
[1753885340385,0.37868049,118160.0,118130.0,0.31687861]
[1753885340607,0.46249052,118160.0,118130.0,0.2599323]
[1753885340824,0.03,118150.0,118130.0,0.3147623]
[1753885341055,0.03791266,118150.0,118140.0,0.131]
[1753885341283,0.03989266,118150.0,118140.0,0.131]
[1753885341729,0.07159266,118150.0,118140.0,0.131]
[1753885342652,0.07159266,118150.0,118140.0,0.18583]
[1753885344037,0.36175537,118160.0,118140.0,0.79766666]
[1753885344263,0.40006463,118160.0,118150.0,0.05483]
[1753885344482,0.40204463,118160.0,118150.0,0.05483]
[1753885344700,0.37164463,118160.0,118150.0,0.22925634]
[1753885344937,0.02966463,118160.0,118150.0,0.29415634]
[1753885345155,0.02966463,118160.0,118150.0,0.73163233]
[1753885345406,0.02175537,118160.0,118150.0,0.73163233]
[1753885345644,0.02966538,118160.0,118150.0,0.73163233]
[1753885345878,0.02175537,118160.0,118150.0,0.73163233]
[1753885346110,0.0296654,118160.0,118150.0,0.37863364]
[1753885346345,0.02175537,118160.0,118150.0,0.82488566]
[1753885347511,0.02175537,118160.0,118150.0,0.82888566]
[1753885348496,0.02175537,118160.0,118150.0,0.7525596]
[1753885348775,0.02175537,118160.0,118150.0,0.76948636]
[1753885349293,0.02175537,118160.0,118150.0,1.23279682]
[1753885349295,0.00441389,118160.0,118150.0,1.23279682]
[1753885349516,0.00441389,118160.0,118150.0,0.76948636]
[1753885349741,0.00441389,118160.0,118150.0,0.88339974]
[1753885349958,0.00441389,118160.0,118150.0,0.88343974]
[1753885350418,0.00441389,118160.0,118150.0,0.38263364]
[1753885350668,0.00441389,118160.0,118150.0,0.51351364]
[1753885351378,0.00441389,118160.0,118150.0,0.53890479]
[1753885351874,0.02178826,118160.0,118150.0,0.53044119]
[1753885352065,0.00441389,118160.0,118150.0,0.89190341]
[1753885352295,0.00441389,118160.0,118150.0,0.90036672]
[1753885353867,0.00441389,118160.0,118150.0,0.89190341]
[1753885354090,0.00441389,118160.0,118150.0,0.90036686]
[1753885354545,0.01978518,118160.0,118150.0,0.90028686]
[1753885354774,0.01978518,118160.0,118150.0,0.90028679]
[1753885354995,0.00441389,118160.0,118150.0,0.90028686]
[1753885355420,0.00441389,118160.0,118150.0,0.90875024]
[1753885355660,0.00441389,118160.0,118150.0,0.90028686]
[1753885355891,0.00441389,118160.0,118150.0,0.89182341]
[1753885356146,0.00441389,118160.0,118150.0,0.90028679]
[1753885356598,0.00441389,118160.0,118150.0,0.9087501]
[1753885356865,0.00441389,118160.0,118150.0,0.90028679]
[1753885357362,0.00441389,118160.0,118150.0,0.9087501]
[1753885359020,0.00441389,118160.0,118150.0,0.55575141]
[1753885359236,0.00441389,118160.0,118150.0,0.9087501]
[1753885362399,0.00441389,118160.0,118150.0,0.90028679]
[1753885362650,0.00441389,118160.0,118150.0,0.9087501]
[1753885365171,0.00441389,118160.0,118150.0,0.90028679]
[1753885365386,0.00441389,118160.0,118150.0,0.9087501]
[1753885365616,0.00441389,118160.0,118150.0,0.89182341]
[1753885365838,0.00441389,118160.0,118150.0,0.90028686]
[1753885366068,0.00441389,118160.0,118150.0,0.75255988]
[1753885366301,0.00639389,118160.0,118150.0,0.2191973]
[1753885366534,0.04140389,118160.0,118150.0,0.2191973]
[1753885366976,0.03929389,118160.0,118150.0,0.2191973]
[1753885367296,0.03929389,118160.0,118150.0,0.2171973]
[1753885367514,0.00639389,118160.0,118150.0,0.2744173]
[1753885367728,0.00639389,118160.0,118150.0,0.2754173]
[1753885367953,0.00639389,118160.0,118150.0,0.2734173]
[1753885368368,0.00639389,118160.0,118150.0,0.2744173]
[1753885369287,0.01485634,118160.0,118150.0,0.2744173]
[1753885369511,0.02331893,118160.0,118150.0,0.2744173]
[1753885369980,0.00737634,118160.0,118150.0,0.2744173]
[1753885370209,0.01583886,118160.0,118150.0,0.2744173]
[1753885370429,0.01603886,118160.0,118150.0,0.2744173]
[1753885370631,0.00757634,118160.0,118150.0,0.2744173]
[1753885371090,0.01603886,118160.0,118150.0,0.2744173]
[1753885371607,0.00757634,118160.0,118150.0,0.2744173]
[1753885371848,0.0002,118160.0,118150.0,0.2744173]
[1753885372049,0.0002,118160.0,118150.0,0.2774673]
[1753885372266,0.0002,118160.0,118150.0,0.2796173]
[1753885373140,0.02351479,118170.0,118150.0,0.69551599]
[1753885373336,0.03212212,118170.0,118150.0,0.69551599]
[1753885373561,0.03212212,118170.0,118160.0,0.06027]
[1753885373789,0.03232212,118170.0,118160.0,0.06027]
[1753885373951,0.0153985,118170.0,118160.0,0.06027]
[1753885374598,0.0153985,118170.0,118160.0,0.06242]
[1753885374754,0.0153985,118170.0,118160.0,0.06027]
[1753885375623,0.0151985,118170.0,118160.0,0.67129377]
[1753885375859,0.0151985,118170.0,118160.0,0.732478]
[1753885376056,0.0151985,118170.0,118160.0,0.733478]
[1753885377112,0.02313213,118170.0,118160.0,0.733478]
[1753885377329,0.0151985,118170.0,118160.0,0.733478]
[1753885378896,0.0151985,118170.0,118160.0,0.7419411]
[1753885379559,0.0151985,118170.0,118160.0,0.733478]
[1753885379764,0.0151985,118170.0,118160.0,0.74194102]
[1753885379965,0.0151985,118170.0,118160.0,0.38047931]
[1753885380200,0.0151985,118170.0,118160.0,0.74194102]
[1753885380416,0.0151985,118170.0,118160.0,0.7419411]
[1753885380622,0.0151985,118170.0,118160.0,0.74194102]
[1753885380849,0.0151985,118170.0,118160.0,0.733478]
[1753885381269,0.0151985,118170.0,118160.0,0.7419411]
[1753885382161,0.0151985,118170.0,118160.0,0.76732967]
[1753885382381,0.0151985,118170.0,118160.0,0.75040412]
[1753885382650,0.0151985,118170.0,118160.0,0.758867]
[1753885382908,0.0151985,118170.0,118160.0,0.76732967]
[1753885383156,0.0151985,118170.0,118160.0,0.77579226]
[1753885383389,0.00014545,118170.0,118160.0,0.77579226]
[1753885384514,0.00014545,118170.0,118160.0,0.77479226]
[1753885384729,0.00014545,118170.0,118160.0,0.77579226]
[1753885385670,0.01567962,118170.0,118160.0,0.77579226]
[1753885385921,0.00014545,118170.0,118160.0,0.77579226]
[1753885386174,0.00014545,118170.0,118160.0,0.77679226]
[1753885387180,0.00014545,118170.0,118160.0,0.38994241]
[1753885387408,0.00014545,118170.0,118160.0,0.89050707]
[1753885387629,0.00014545,118170.0,118160.0,0.89896988]
[1753885387853,0.00014545,118170.0,118160.0,0.52904543]
[1753885388064,0.00014545,118170.0,118160.0,0.89050707]
[1753885388284,0.00014545,118170.0,118160.0,0.90743262]
[1753885388703,0.00014545,118170.0,118160.0,0.88204412]
[1753885388937,0.00014545,118170.0,118160.0,0.89050707]
[1753885389158,0.00014545,118170.0,118160.0,0.90743269]
[1753885389379,0.00014545,118170.0,118160.0,0.89050707]
[1753885389581,0.0154137,118170.0,118160.0,0.865118]
[1753885389795,0.00034545,118170.0,118160.0,0.2795573]
[1753885390014,0.00034545,118170.0,118160.0,0.44664931]
[1753885390296,0.00014545,118170.0,118160.0,0.48021931]
[1753885390510,0.00014545,118170.0,118160.0,0.864618]
[1753885390740,0.00014545,118170.0,118160.0,0.87308102]
[1753885390960,0.00014545,118170.0,118160.0,1.26813501]
[1753885391174,0.00014545,118170.0,118160.0,1.25120975]
[1753885391400,0.00014545,118170.0,118160.0,0.88987755]
[1753885391612,0.00014545,118170.0,118160.0,0.8814146]
[1753885392081,0.00034545,118170.0,118160.0,0.2117173]
[1753885392296,0.00034545,118170.0,118160.0,0.63566957]
[1753885392958,0.04826327,118170.0,118160.0,0.2171173]
[1753885393181,0.07238104,118170.0,118160.0,0.13264]
[1753885393631,0.08930473,118170.0,118160.0,0.13264]
[1753885393846,0.08084278,118170.0,118160.0,0.13064]
[1753885394312,0.07251104,118170.0,118160.0,0.13064]
[1753885394560,0.08768526,118170.0,118160.0,0.13064]
[1753885394769,0.07974967,118170.0,118160.0,0.13064]
[1753885394989,0.08768634,118170.0,118160.0,0.13064]
[1753885395652,0.08768671,118170.0,118160.0,0.13064]
[1753885397399,0.08768671,118170.0,118160.0,0.18462]
[1753885397876,0.05648671,118170.0,118160.0,0.18462]
[1753885399036,0.04854967,118170.0,118160.0,0.18462]
[1753885402129,0.05701155,118170.0,118160.0,0.18462]
[1753885402325,0.05701148,118170.0,118160.0,0.18462]
[1753885402535,0.04854967,118170.0,118160.0,0.18462]
[1753885402743,0.05701155,118170.0,118160.0,0.18462]
[1753885402946,0.05701148,118170.0,118160.0,0.18462]
[1753885403618,0.01564967,118170.0,118160.0,0.18974]
[1753885403850,0.01544967,118170.0,118160.0,0.85951107]
[1753885404536,0.01544967,118170.0,118160.0,0.86797417]
[1753885404774,0.01544967,118170.0,118160.0,0.85951107]
[1753885405547,0.01544967,118170.0,118160.0,0.86797417]
[1753885405791,0.01544967,118170.0,118160.0,0.89436259]
[1753885406511,0.01544967,118170.0,118160.0,0.89536259]
[1753885412091,0.01544967,118170.0,118160.0,0.89536288]
[1753885412386,0.01544967,118170.0,118160.0,0.90382504]
[1753885413201,0.01544967,118170.0,118160.0,0.87839704]
[1753885413374,0.01544967,118170.0,118160.0,0.86147107]
[1753885413594,0.01544967,118170.0,118160.0,0.86993417]
[1753885413825,0.01544967,118170.0,118160.0,0.89532245]
[1753885414738,0.01544967,118170.0,118160.0,0.87839712]
[1753885414968,0.01544967,118170.0,118160.0,0.88674336]
[1753885415203,0.01544967,118170.0,118160.0,0.86981724]
[1753885415433,0.01564967,118170.0,118160.0,0.53975523]
[1753885415687,0.01564967,118170.0,118160.0,0.67035523]
[1753885416400,0.01564967,118170.0,118160.0,0.63755523]
[1753885416903,0.01564967,118170.0,118160.0,0.80681724]
[1753885417132,0.01544967,118170.0,118160.0,0.63755523]
[1753885417801,0.01544967,118170.0,118160.0,0.86991724]
[1753885418020,0.01544967,118170.0,118160.0,0.3392773]
[1753885418242,0.01544967,118170.0,118160.0,0.86991724]
[1753885420940,0.01544967,118170.0,118160.0,0.70065523]
[1753885421162,0.01544967,118170.0,118160.0,0.50853931]
[1753885421384,0.01544967,118170.0,118160.0,0.87838026]
[1753885421608,0.01544967,118170.0,118160.0,0.86991724]
[1753885421822,0.01544967,118170.0,118160.0,0.87838026]
[1753885422042,0.01544967,118170.0,118160.0,0.88684321]
[1753885422256,0.01544967,118170.0,118160.0,0.88684322]
[1753885422957,0.01544967,118170.0,118160.0,0.73931724]
[1753885423181,0.01544967,118170.0,118160.0,0.88684322]
[1753885425751,0.01544967,118170.0,118160.0,0.89530631]
[1753885425957,0.01544967,118170.0,118160.0,0.87838034]
[1753885426183,0.01544967,118170.0,118160.0,0.86991724]
[1753885426407,0.01544967,118170.0,118160.0,0.50853931]
[1753885426639,0.01544967,118170.0,118160.0,0.86991724]
[1753885427314,0.01544967,118170.0,118160.0,0.50853931]
[1753885427555,0.01544967,118170.0,118160.0,0.86991724]
[1753885428202,0.01544967,118170.0,118160.0,0.83971724]
[1753885428697,0.01544967,118170.0,118160.0,0.87111724]
[1753885428914,0.01544967,118170.0,118160.0,0.87958034]
[1753885429132,0.01544967,118170.0,118160.0,0.87111724]
[1753885429568,0.01544967,118170.0,118160.0,0.88804336]
[1753885429781,0.01544967,118170.0,118160.0,0.89650631]